bitfinex/quotes_ETHUSD_20250929
["timestamp","ask_amount","ask_price","bid_price","bid_amount"]
[1759178919093,3.32471778,4234.4,4234.3,0.1176]
[1759178919247,3.02489084,4234.4,4234.3,0.1176]
[1759178919769,0.66328117,4234.4,4234.3,0.1176]
[1759178920271,0.6367,4234.4,4234.3,0.1176]
[1759178920504,2.99830967,4234.4,4234.3,0.1176]
[1759178920872,0.6367,4234.4,4234.3,0.1176]
[1759178921273,0.66328117,4234.4,4234.3,0.1176]
[1759178921671,0.6367,4234.4,4234.3,0.1176]
[1759178922171,0.6367,4234.4,4234.3,2.9716]
[1759178922798,0.6367,4234.4,4234.0,2.854]
[1759178922974,0.716,4234.3,4234.1,2.854]
[1759178923179,0.716,4234.2,4234.1,2.854]
[1759178924119,0.001,4234.4,4234.2,0.792]
[1759178924673,0.4749,4234.3,4234.2,0.792]
[1759178925678,0.716,4234.3,4234.2,0.792]
[1759178925884,0.716,4234.3,4232.5,2.36266226]
[1759178925885,0.716,4234.3,4233.6,2.3620079]
[1759178926091,0.2411,4234.3,4233.7,6.00799102]
[1759178926300,0.4749,4234.2,4233.9,0.792]
[1759178926504,0.02758117,4234.4,4233.9,0.792]
[1759178926505,0.716,4234.1,4233.9,0.792]
[1759178926817,0.4749,4234.0,4233.9,0.792]
[1759178927171,0.001,4234.4,4233.9,0.81561888]
[1759178927499,0.001,4234.4,4234.3,3.15366544]
[1759178927700,0.001,4234.4,4234.3,6.00766544]
[1759178928630,0.001,4234.4,4234.3,3.646]
[1759178928801,0.001,4234.4,4234.3,6.00766544]
[1759178930628,0.4759,4234.4,4234.3,6.00766544]
[1759178930810,0.001,4234.4,4234.3,6.00766544]
[1759178932428,0.001,4234.4,4234.3,3.646]
[1759178932602,0.001,4234.4,4234.3,6.00766544]
[1759178932803,0.001,4234.4,4234.3,6.12526544]
[1759178934625,0.001,4234.4,4234.3,6.57966544]
[1759178934929,0.001,4234.4,4234.3,6.12726544]
[1759178935722,0.001,4234.4,4234.3,6.58166544]
[1759178936132,0.001,4234.4,4234.3,6.12726544]
[1759178936730,0.001,4234.4,4234.3,6.58166544]
[1759178937338,0.001,4234.4,4234.3,6.82316544]
[1759178937634,0.001,4234.4,4234.3,9.82316544]
[1759178941045,0.001,4234.4,4234.3,9.91783092]
[1759178942411,0.001,4234.4,4234.3,10.22510167]
[1759178942709,0.001,4234.4,4234.3,9.91783092]
[1759178943120,0.001,4235.3,4235.2,3.15316358]
[1759178943121,1e-08,4235.3,4235.2,3.15316358]
[1759178943320,1e-08,4235.3,4235.2,30.30702252]
[1759178943520,1e-08,4235.3,4235.2,31.00292252]
[1759178944327,1e-08,4235.3,4235.2,6.60756358]
[1759178944534,1e-08,4235.3,4235.2,9.45956358]
[1759178945324,1e-08,4235.3,4235.2,9.94139755]
[1759178945736,1e-08,4235.3,4235.2,10.18289755]
[1759178946930,1e-08,4235.3,4235.2,9.94139755]
[1759178947141,1e-08,4235.3,4235.2,10.18289755]
[1759178947963,1e-08,4235.3,4235.2,9.94139755]
[1759178948131,1e-08,4235.3,4235.2,10.18289755]
[1759178948334,1e-08,4235.3,4235.2,7.08939755]
[1759178948549,1e-08,4235.3,4235.2,9.48599755]
[1759178949180,1e-08,4235.3,4235.2,9.94039755]
[1759178949358,1e-08,4235.3,4235.2,10.18189755]
[1759178950983,1e-08,4235.3,4235.2,10.62899755]
[1759178952274,0.001,4236.9,4236.8,3.1522719]
[1759178952588,0.001,4236.9,4236.8,6.0022719]
[1759178952787,0.001,4236.9,4236.8,3.1522719]
[1759178953089,0.4481,4236.9,4236.8,6.1198719]
[1759178953987,0.001,4236.9,4236.8,6.1198719]
[1759178955208,0.001,4236.9,4236.8,9.5894719]
[1759178955357,0.001,4236.9,4236.8,9.8174719]
[1759178962494,0.001,4236.9,4236.8,9.6998719]
[1759178962894,0.001,4236.9,4236.8,6.8498719]
[1759178963097,0.001,4236.9,4236.8,11.9658719]
[1759178963285,0.001,4237.4,4236.9,6.15221619]
[1759178963464,0.001,4237.4,4237.3,27.45385233]
[1759178963668,0.001,4237.4,4237.3,30.30085233]
[1759178963860,0.001,4237.4,4237.3,30.99845233]
[1759178964095,0.001,4237.8,4237.7,3.15177063]
[1759178964268,0.001,4237.8,4237.7,6.15177063]
[1759178964470,0.001,4237.8,4237.7,11.26777063]
[1759178964905,0.001,4237.8,4237.7,11.73737063]
[1759178965189,0.001,4237.8,4237.7,11.96537063]
[1759178965390,0.4636,4238.8,4238.7,3.1512139]
[1759178965391,0.3446,4238.8,4238.7,3.1512139]
[1759178965595,0.3446,4238.8,4238.7,8.9982139]
[1759178965812,0.5814,4238.8,4238.7,8.9982139]
[1759178969311,0.02658117,4240.2,4238.7,8.9982139]
[1759178969312,0.2368,4239.3,4238.8,0.792]
[1759178969509,2.35841889,4240.2,4239.4,2.35878304]
[1759178969814,2.35845243,4240.1,4239.6,0.792]
[1759178970019,0.7004,4240.0,4239.8,0.792]
[1759178970219,3.05894619,4239.9,4239.8,0.792]
[1759178970375,3.05894619,4239.9,4239.8,3.638]
[1759178970580,0.7004,4239.9,4237.7,0.48358256]
[1759178970897,0.2368,4239.8,4238.0,5.35956853]
[1759178971205,0.7004,4239.7,4239.1,0.792]
[1759178971405,0.7004,4239.6,4239.2,2.845]
[1759178971608,0.7004,4239.5,4239.2,2.845]
[1759178971811,0.7004,4239.4,4239.2,2.845]
[1759178972010,2.35863967,4239.8,4239.2,2.845]
[1759178972199,0.7004,4239.3,4239.2,3.637]
[1759178972594,0.7004,4239.3,4239.2,3.7546]
[1759178973198,3.05928,4239.3,4239.2,0.1176]
[1759178973411,3.60108646,4239.3,4239.2,0.1176]
[1759178973912,6.60108646,4239.3,4239.2,0.2296]
[1759178974095,6.60108646,4239.3,4239.2,0.1176]
[1759178974284,6.60108646,4239.3,4239.2,0.6706]
[1759178974782,6.55108646,4239.3,4239.2,0.1176]
[1759178974983,6.55108646,4239.3,4239.2,2.9626]
[1759178975288,13.08184343,4239.3,4239.2,2.9626]
[1759178976179,2.35948535,4238.3,4237.2,2.36002275]
[1759178976387,2.35955501,4238.1,4236.8,6.53208313]
[1759178976599,2.35955501,4238.1,4237.2,2.36004908]
[1759178976812,0.7004,4238.0,4237.4,0.792]
[1759178977111,2.35955501,4238.1,4238.0,0.9096]
[1759178977307,2.74769551,4238.1,4238.0,0.1176]
[1759178977508,2.74769551,4238.1,4238.0,2.9616]
[1759178977711,3.44809551,4238.1,4238.0,2.9616]
[1759178978412,1.0885405,4238.1,4238.0,2.9616]
[1759178978715,3.05994791,4238.1,4238.0,0.1176]
[1759178978877,3.08652908,4238.1,4238.0,2.9616]
[1759178979682,0.7004,4238.1,4238.0,2.9616]
[1759178980129,3.05994791,4238.1,4238.0,2.9616]
[1759178980296,3.05994791,4238.1,4238.0,0.1176]
[1759178980518,3.05994791,4238.1,4238.0,2.9616]
[1759178980725,0.7004,4238.1,4238.0,0.1176]
[1759178980938,0.7004,4238.1,4238.0,2.9616]
[1759178982151,3.05994791,4238.1,4238.0,2.9616]
[1759178982732,3.05994791,4238.1,4238.0,0.1176]
[1759178982910,3.60188811,4238.1,4238.0,0.1176]
[1759178983114,3.60188811,4238.1,4238.0,2.9606]
[1759178983712,1.2423402,4238.1,4238.0,2.9606]
[1759178984016,3.60188811,4238.1,4238.0,2.9606]
[1759178984256,3.08652908,4238.1,4238.0,0.1176]
[1759178984412,6.05994791,4238.1,4238.0,0.1176]
[1759178985141,2.35999339,4237.3,4237.2,2.812]
[1759178985317,3.30079273,4237.3,4237.1,2.812]
[1759178985518,3.09143025,4237.2,4237.1,2.812]
[1759178986045,3.09143025,4237.2,4237.1,2.9296]
[1759178988641,2.38663025,4237.2,4237.1,2.9296]
[1759178989144,2.38663025,4237.2,4237.1,0.1176]
[1759178989315,2.38663025,4237.2,4237.1,2.9606]
[1759178989950,2.84313025,4237.2,4237.1,2.9626]
[1759178990250,3.09143025,4237.2,4237.1,2.9626]
[1759178991944,3.93656862,4237.2,4237.1,2.9626]
[1759178992326,3.93656862,4237.2,4237.1,0.1196]
[1759178992744,3.93656862,4237.2,4237.1,2.9616]
[1759178993645,3.93656862,4237.2,4237.1,0.1196]
[1759178995756,6.93656862,4237.2,4237.1,0.002]
[1759178996052,6.90998745,4237.2,4237.1,0.002]
[1759178996558,7.02758745,4237.2,4237.1,0.002]
[1759178997345,9.86958745,4237.2,4237.1,0.002]
[1759178998460,6.45348745,4237.2,4237.1,0.002]
[1759178998660,5.36004908,4237.2,4237.1,0.1196]
[1759178998861,5.35853389,4237.2,4237.1,0.1196]
[1759178999848,6.06333389,4237.2,4237.1,0.1196]
[1759179000250,5.60683389,4237.2,4237.1,0.1196]
[1759179000440,5.35853389,4237.2,4237.1,0.1196]
[1759179000639,6.20086262,4237.2,4237.1,0.1196]
[1759179001357,5.36004908,4237.2,4237.1,0.1196]
[1759179001530,3.0,4237.2,4237.1,0.1196]
[1759179001957,5.36004908,4237.2,4237.1,0.1196]
[1759179003075,3.0,4237.2,4237.1,0.1196]
[1759179003465,5.38663025,4237.2,4237.1,0.1196]
[1759179003671,5.36004908,4237.2,4237.1,0.1196]
[1759179003870,8.12819845,4237.8,4237.1,0.1196]
[1759179004051,2.35984448,4237.6,4237.1,0.002]
[1759179004375,0.02658117,4237.5,4237.1,0.002]
[1759179004581,3.06462631,4237.6,4237.5,0.1176]
[1759179004776,6.09120748,4237.6,4237.5,0.1176]
[1759179004954,6.06462631,4237.6,4237.5,0.1176]
[1759179006078,5.35982631,4237.6,4237.5,0.1176]
[1759179007071,0.2483,4238.4,4237.6,0.792]
[1759179007377,0.02658117,4238.3,4237.7,3.2722]
[1759179007578,7.87989845,4237.9,4237.5,2.84]
[1759179007884,0.48308117,4237.8,4237.5,2.84]
[1759179008080,0.2483,4237.7,4237.1,0.002]
[1759179008279,0.02658117,4237.6,4237.1,2.842]
[1759179008485,2.38640748,4237.6,4237.5,0.1176]
[1759179008783,2.63470748,4237.6,4237.5,0.1176]
[1759179008988,4.72429142,4237.6,4237.5,0.1176]
[1759179009585,2.36004908,4237.2,4237.1,0.002]
[1759179009890,13.2665287,4237.2,4237.1,0.002]
[1759179010058,13.91754753,4237.2,4237.1,0.002]
[1759179010806,5.36004908,4237.2,4237.1,0.002]
[1759179010999,3.0,4237.2,4237.1,0.002]
[1759179011170,5.36004908,4237.2,4237.1,0.002]
[1759179011572,6.03764908,4237.2,4237.1,0.002]
[1759179011773,7.66539963,4237.2,4237.1,0.002]
[1759179012174,7.22309963,4237.2,4237.1,0.002]
[1759179012374,6.98779963,4237.2,4237.1,0.002]
[1759179012604,3.0,4237.2,4237.1,0.002]
[1759179012806,5.36004908,4237.2,4237.1,0.002]
[1759179013308,6.03764908,4237.2,4237.1,0.002]
[1759179013483,3.0,4237.2,4237.1,0.002]
[1759179013687,5.36004908,4237.2,4237.1,0.002]
[1759179014089,3.0,4237.2,4237.1,0.002]
[1759179014283,0.02658117,4237.2,4237.1,0.002]
[1759179014615,2.36004908,4237.2,4237.1,0.002]
[1759179015277,2.38658173,4237.3,4237.1,0.002]
[1759179015477,9.41257539,4261.6,4237.2,0.792]
[1759179015478,0.6975,4238.6,4237.2,0.792]
[1759179015813,0.6975,4238.6,4237.1,0.7098]
[1759179015814,2.35969797,4237.9,4237.4,0.792]
[1759179016014,2.38627914,4237.9,4237.4,0.792]
[1759179016222,0.02658117,4237.9,4237.5,0.7078]
[1759179016415,0.02658117,4238.0,4237.5,0.7078]
[1759179016723,2.35965926,4237.9,4237.5,0.7078]
[1759179017086,2.38619327,4238.0,4237.5,0.7078]
[1759179017407,2.38619327,4238.0,4237.6,0.7078]
[1759179017408,0.02658117,4238.0,4237.6,0.7078]
[1759179017615,2.35959898,4238.1,4237.7,0.7078]
[1759179017807,2.38619249,4238.0,4237.7,0.7078]
[1759179018195,0.02658117,4238.0,4237.4,1.4998]
[1759179018395,2.35969627,4237.9,4237.5,2.837]
[1759179019482,0.02658117,4238.0,4237.8,0.1176]
[1759179019694,3.02658117,4238.5,4237.8,0.1176]
[1759179020013,3.0,4238.3,4237.5,3.5448]
[1759179020197,2.35964071,4238.0,4237.5,3.5448]
[1759179020402,2.35930851,4238.6,4238.3,0.1176]
[1759179020598,0.02658117,4238.6,4238.5,0.1176]
[1759179020825,2.38586388,4238.6,4238.5,0.1176]
[1759179021522,0.02658117,4238.8,4238.4,0.792]
[1759179021723,2.35917395,4238.8,4238.5,2.9536]
[1759179022079,2.35915825,4238.8,4238.5,2.9536]
[1759179022281,2.35926957,4238.6,4238.5,0.1176]
[1759179022485,2.38585074,4238.6,4238.5,2.9536]
[1759179022686,3.08335074,4238.6,4238.5,2.9536]
[1759179022993,2.38585074,4238.6,4238.5,2.9536]
[1759179023195,0.02658117,4238.6,4238.5,2.9536]
[1759179023515,2.3592158,4238.7,4238.5,2.9536]
[1759179023683,2.35926957,4238.6,4238.5,2.9536]
[1759179024422,3.05676957,4238.6,4238.5,2.9536]
[1759179024717,3.08335074,4238.6,4238.5,2.9536]
[1759179024928,2.38585074,4238.6,4238.5,2.9536]
[1759179025616,4.38901092,4238.6,4238.5,2.9536]
[1759179025820,4.38901092,4238.6,4238.5,0.1176]
[1759179026614,0.02658117,4238.7,4238.5,0.1176]
[1759179026814,2.35926957,4238.6,4238.5,0.1176]
[1759179027320,10.23916802,4238.6,4238.5,0.1176]
[1759179030118,10.93666802,4238.6,4238.5,0.1176]
[1759179031719,2.35926957,4238.6,4238.5,0.1176]
[1759179031920,2.38585074,4238.6,4238.5,0.1176]
[1759179033930,4.204633,4238.6,4238.5,0.1176]
[1759179034227,4.669233,4238.6,4238.5,0.1176]
[1759179035934,7.669233,4238.6,4238.5,0.1176]
[1759179036233,7.64265183,4238.6,4238.5,0.1176]
[1759179036609,7.64265183,4238.6,4237.1,0.002]
[1759179036610,2.35980062,4237.7,4237.1,0.002]
[1759179036842,0.02658117,4237.6,4237.2,3.5398]
[1759179037036,2.35971904,4237.8,4237.2,3.5398]
[1759179037037,0.02658117,4237.7,4237.5,0.1176]
[1759179037329,0.02658117,4237.9,4237.5,0.1176]
[1759179037529,0.02658117,4237.9,4237.8,0.1176]
[1759179037701,2.38624043,4237.9,4237.8,0.1176]
[1759179038844,7.34631474,4237.9,4237.8,0.1176]
[1759179039045,7.34631474,4237.9,4237.1,0.002]
[1759179039046,2.35982631,4237.6,4237.1,0.002]
[1759179039244,7.87989845,4237.2,4237.1,0.002]
[1759179039536,13.23994753,4237.2,4237.1,0.002]
[1759179039738,13.94104753,4237.2,4237.1,0.002]
[1759179039920,15.57115162,4237.2,4237.1,0.002]
[1759179040531,18.05935162,4237.2,4237.1,0.002]
[1759179040764,18.52075162,4237.2,4237.1,0.002]
[1759179043268,2.36032761,4236.7,4236.3,0.1176]
[1759179043471,16.86986525,4236.7,4236.3,0.1176]
[1759179043631,17.54438408,4236.7,4236.3,0.1176]
[1759179043830,17.08298408,4236.7,4236.3,0.1176]
[1759179044037,14.01228408,4236.7,4236.5,0.1176]
[1759179044237,14.25198408,4236.7,4236.5,0.1176]
[1759179044448,5.36032761,4236.7,4236.5,0.1176]
[1759179044632,13.24022606,4236.7,4236.5,0.1176]
[1759179044832,13.94132606,4236.7,4236.5,0.1176]
[1759179045434,13.94132606,4236.7,4236.2,0.002]
[1759179045638,2.36077672,4235.9,4235.3,0.002]
[1759179045836,7.87989845,4235.4,4235.3,0.002]
[1759179046061,10.24095053,4235.4,4235.3,0.002]
[1759179046269,10.2485773,4235.4,4235.3,0.002]
[1759179047466,2.36105208,4235.4,4235.3,0.002]
[1759179047777,2.38763325,4235.4,4235.3,0.002]
[1759179050758,0.02658117,4235.4,4235.3,0.002]
[1759179050989,2.36105208,4235.4,4235.3,0.002]
[1759179051896,8.34892522,4236.5,4235.3,0.698]
[1759179052175,2.36089056,4235.7,4235.3,0.698]
[1759179052353,0.02658117,4235.6,4235.3,0.698]
[1759179052548,0.02658117,4235.6,4235.4,0.696]
[1759179052753,2.36081368,4235.9,4235.4,0.696]
[1759179053075,2.38742756,4235.8,4235.5,0.696]
[1759179053265,0.02658117,4235.8,4235.6,0.696]
[1759179053462,0.02658117,4236.3,4235.7,0.696]
[1759179053671,2.36071955,4236.0,4235.8,0.2324]
[1759179053975,2.36071955,4236.0,4235.9,0.696]
[1759179055672,2.36071955,4236.0,4235.9,0.8136]
[1759179056074,3.83489252,4236.4,4235.9,0.8136]
[1759179056283,2.3606127,4236.2,4236.0,0.696]
[1759179056483,2.36082724,4235.9,4235.4,0.2324]
[1759179056685,2.36082724,4235.9,4235.5,3.8534]
[1759179056886,2.36082724,4235.9,4235.8,0.1176]
[1759179057088,2.83563627,4235.9,4235.8,0.1176]
[1759179057291,2.83563627,4235.9,4235.3,0.002]
[1759179057292,0.71450903,4235.9,4235.3,0.002]
[1759179057489,0.48798117,4235.8,4235.6,0.1176]
[1759179057663,2.36088485,4235.7,4235.6,0.1176]
[1759179057985,10.94951007,4235.7,4235.6,0.1176]
[1759179058170,12.62802489,4235.7,4235.6,0.1176]
[1759179058959,4.03939967,4235.7,4235.6,0.1176]
[1759179059159,4.06598084,4235.7,4235.6,0.1176]
[1759179059417,2.36088485,4235.7,4235.6,0.1176]
[1759179060701,2.38746602,4235.7,4235.6,0.1176]
[1759179061379,3.0,4235.5,4235.3,0.002]
[1759179061571,3.08856602,4235.7,4235.3,0.002]
[1759179061572,10.27515847,4235.4,4235.3,0.002]
[1759179061781,12.51948569,4235.4,4235.3,0.002]
[1759179062091,15.51948569,4235.4,4235.3,0.002]
[1759179062297,14.17579648,4235.4,4235.3,0.002]
[1759179064829,17.00279648,4235.4,4235.3,0.002]
[1759179073230,17.00279648,4235.4,4235.1,1e-08]
[1759179073231,2.36116358,4235.2,4235.1,1e-08]
[1759179073439,8.21374475,4235.2,4235.1,1e-08]
[1759179073595,11.36996358,4235.2,4235.1,1e-08]
[1759179074608,11.90538991,4234.5,4234.4,0.002]
[1759179074808,16.15807709,4234.5,4234.4,0.002]
[1759179075131,16.85717709,4234.5,4234.4,0.002]
[1759179077910,16.39117709,4234.5,4234.4,0.002]
[1759179078250,6.78824108,4234.5,4234.4,0.002]
[1759179078449,9.61324108,4234.5,4234.4,0.2376]
[1759179078652,6.78824108,4234.5,4234.4,0.002]
[1759179079026,7.02134108,4234.5,4234.4,0.002]
[1759179079228,7.48734108,4234.5,4234.4,0.002]
[1759179079836,7.02134108,4234.5,4234.4,0.002]
[1759179080234,7.48734108,4234.5,4234.4,0.002]
[1759179080649,7.02134108,4234.5,4234.4,0.002]
[1759179081042,7.48734108,4234.5,4234.4,0.002]
[1759179081353,10.31134108,4234.5,4234.4,0.002]
[1759179082422,16.15607709,4234.5,4234.4,0.002]
[1759179084548,16.38917709,4234.5,4234.4,0.002]
[1759179085828,13.33207709,4234.5,4234.4,0.002]
[1759179086160,13.33207709,4234.5,4234.4,0.7056]
[1759179086548,13.33207709,4234.5,4234.4,0.002]
[1759179087139,6.78824108,4234.5,4234.4,0.002]
[1759179087458,13.33207709,4234.5,4234.4,0.002]
[1759179088244,11.90538991,4234.5,4234.4,0.002]
[1759179088543,11.90538991,4234.5,4234.4,0.7056]
[1759179088760,11.90538991,4234.5,4234.4,0.2376]
[1759179089156,11.90538991,4234.5,4234.4,0.002]
[1759179089751,11.90538991,4234.5,4234.4,0.7056]
[1759179090555,11.90538991,4234.5,4234.4,0.002]
[1759179090755,13.61437709,4234.5,4234.4,0.002]
[1759179094200,3.0,4234.5,4234.4,0.002]
[1759179094399,2.3615539,4234.5,4234.4,0.8232]
[1759179095165,2.38813507,4234.5,4234.4,0.8232]
[1759179096295,0.02658117,4234.5,4234.4,0.8232]
[1759179096487,2.3615539,4234.5,4234.4,0.8232]
[1759179098357,0.02658117,4234.6,4234.4,0.8232]
[1759179098559,2.3615539,4234.5,4234.4,0.1196]
[1759179099205,2.3615539,4234.5,4234.4,0.8293]
[1759179099401,2.38813507,4234.5,4234.4,0.8293]
[1759179101905,2.38813507,4234.5,4234.4,0.1196]
[1759179102115,0.02758117,4234.7,4234.4,0.8293]
[1759179102294,2.38906006,4234.7,4234.5,0.7097]
[1759179102494,2.36151379,4234.6,4234.4,0.1196]
[1759179102677,2.36151379,4234.6,4234.5,0.7097]
[1759179104410,0.001,4234.7,4234.4,0.1196]
[1759179104580,2.36244236,4234.7,4234.6,0.1176]
[1759179106490,2.36244236,4234.7,4234.6,0.8273]
[1759179106691,0.001,4234.7,4234.6,0.1176]
[1759179106918,0.001,4234.7,4234.6,0.8273]
[1759179107130,0.001,4234.7,4234.6,0.1176]
[1759179107425,0.001,4234.7,4234.6,0.8273]
[1759179107604,2.36244236,4234.7,4234.6,0.8273]
[1759179108587,2.36244236,4234.7,4234.6,0.3629]
[1759179109588,0.001,4234.7,4234.6,0.8273]
[1759179112588,0.001,4234.7,4234.6,9.50576042]
[1759179112824,0.001,4234.7,4234.6,11.86725855]
[1759179114438,0.001,4234.7,4234.6,12.33212909]
[1759179114731,0.001,4234.7,4234.6,2.08417054]
[1759179115024,0.001,4234.7,4234.6,4.89917054]
[1759179115224,0.001,4234.7,4234.6,7.26066867]
[1759179117944,0.001,4234.7,4234.6,2.08417054]
[1759179118139,0.001,4234.7,4234.6,7.25966867]
[1759179118728,0.001,4234.7,4234.6,0.1176]
[1759179118946,0.231,4234.7,4234.6,2.9316]
[1759179119124,0.231,4234.7,4234.6,0.1176]
[1759179119125,2.59244236,4234.7,4234.6,0.1176]
[1759179119326,3.02714236,4234.7,4234.6,2.9316]
[1759179119552,3.02714236,4234.7,4234.6,2.9336]
[1759179119830,0.6657,4234.7,4234.6,2.9336]
[1759179120335,0.231,4234.7,4234.6,2.9336]
[1759179120547,2.59244236,4234.7,4234.6,2.9336]
[1759179120948,3.02714236,4234.7,4234.6,0.1196]
[1759179121170,3.52517908,4234.7,4234.6,2.9336]
[1759179122061,0.001,4234.7,4234.6,2.9336]
[1759179122766,2.36244236,4234.7,4234.6,2.9336]
[1759179122973,0.001,4234.7,4234.6,2.9336]
[1759179123148,2.36244236,4234.7,4234.6,2.9336]
[1759179124085,0.001,4234.7,4234.6,4.4353]
[1759179124253,0.001,4234.7,4234.6,3.9709]
[1759179124452,0.001,4234.7,4234.6,3.7256]
[1759179125069,0.001,4234.7,4234.6,4.3177]
[1759179125378,0.001,4234.7,4234.6,0.794]
[1759179125677,0.001,4234.7,4234.6,3.606]
[1759179128174,0.001,4234.7,4234.6,3.605]
[1759179128572,0.001,4234.7,4234.6,4.3147]
[1759179129177,0.001,4234.7,4234.6,0.002]
[1759179129378,3.05174236,4234.7,4234.6,2.813]
[1759179129892,3.05174236,4234.7,4234.6,0.002]
[1759179130687,2.60344236,4234.7,4234.6,0.002]
[1759179130924,0.001,4234.7,4234.6,0.002]
[1759179131217,0.001,4234.7,4234.6,3.83199813]
[1759179131390,0.001,4234.7,4234.6,1.4705]
[1759179131586,0.001,4234.7,4234.6,11.74207353]
[1759179131785,0.001,4234.7,4234.6,11.71845855]
[1759179131987,0.001,4234.7,4234.6,6.64199813]
[1759179135111,0.001,4234.7,4234.6,6.75959813]
[1759179135313,0.001,4235.2,4234.7,2.36144236]
[1759179135513,0.001,4235.2,4235.1,11.03967975]
[1759179135714,0.001,4235.2,4235.1,13.96627975]
[1759179135880,0.001,4235.2,4235.1,14.63967975]
[1759179136082,0.001,4235.6,4235.1,14.63967975]
[1759179136083,0.001,4235.6,4235.5,3.15299634]
[1759179136306,0.001,4236.7,4236.0,0.792]
[1759179136504,0.001,4236.7,4236.1,6.07926192]
[1759179136890,0.001,4236.7,4236.1,6.75266192]
[1759179138516,0.2311,4236.2,4236.1,0.9096]
[1759179138690,0.001,4236.2,4236.1,3.7176]
[1759179138885,0.001,4236.2,4236.1,0.9096]
[1759179139186,3.0580062,4236.2,4236.1,2.9256]
[1759179139502,0.6974,4236.2,4236.1,2.9256]
[1759179140286,0.001,4236.2,4236.1,3.7176]
[1759179140487,0.001,4236.2,4236.1,4.2734]
[1759179140693,0.001,4236.2,4236.1,3.7176]
[1759179141092,0.001,4236.2,4236.1,0.9096]
[1759179141345,0.2311,4236.2,4236.1,3.7166]
[1759179141525,0.2311,4236.2,4236.1,0.9096]
[1759179141696,0.6974,4236.2,4236.1,3.7166]
[1759179141897,0.6974,4236.2,4236.1,2.9246]
[1759179142123,0.6974,4236.2,4236.1,3.7166]
[1759179142124,0.001,4236.2,4236.1,3.7166]
[1759179142507,0.001,4236.2,4236.1,0.9096]
[1759179142703,0.6974,4236.2,4236.1,2.9246]
[1759179143427,6.0580062,4236.2,4236.1,2.9246]
[1759179144997,6.0580062,4236.2,4236.1,0.1176]
[1759179145199,6.0580062,4236.2,4236.1,2.9236]
[1759179145398,6.57380423,4236.2,4236.1,0.1176]
[1759179146696,3.57380423,4236.2,4236.1,0.1176]
[1759179146994,3.6003854,4236.2,4236.1,0.1176]
[1759179147818,3.57380423,4236.2,4236.1,0.1176]
[1759179148514,6.57380423,4236.2,4236.1,0.1176]
[1759179149652,2.36124133,4235.1,4234.6,0.002]
[1759179149829,2.36124133,4235.1,4234.7,3.04156018]
[1759179150022,2.36124133,4235.1,4235.0,0.1176]
[1759179150526,0.02658117,4235.3,4235.0,0.1176]
[1759179150527,2.36117708,4235.2,4235.0,0.1176]
[1759179150730,0.2301,4235.4,4235.0,0.1176]
[1759179151105,0.4663,4235.5,4235.3,0.1176]
[1759179151507,2.36105796,4235.4,4235.3,0.1176]
[1759179152126,0.6964,4235.5,4235.3,0.1176]
[1759179152447,0.02658117,4235.4,4235.3,0.1176]
[1759179152615,2.38763325,4235.4,4235.3,0.1176]
[1759179152800,2.61773325,4235.4,4235.3,0.1176]
[1759179153866,3.08403325,4235.4,4235.3,0.1176]
[1759179154738,0.2301,4235.4,4235.3,0.1176]
[1759179154945,2.59115208,4235.4,4235.3,0.1176]
[1759179155125,3.05745208,4235.4,4235.3,0.1176]
[1759179155544,3.05745208,4235.4,4235.3,0.1196]
[1759179156836,2.36102895,4235.5,4235.3,0.1196]
[1759179157354,2.38763325,4235.4,4235.3,0.1196]
[1759179158058,0.02658117,4235.4,4235.3,0.1196]
[1759179158223,0.001,4236.2,4235.3,0.1196]
[1759179158424,2.36081249,4235.9,4235.4,0.2451]
[1759179158658,2.36066192,4236.1,4235.4,0.6734]
[1759179158659,2.36083183,4235.8,4235.4,0.6734]
[1759179159165,2.36083183,4235.8,4235.7,0.1176]
[1759179159462,2.36079176,4235.9,4235.7,2.9206]
[1759179159671,2.36082912,4235.8,4235.7,2.9206]
[1759179160973,0.02658117,4236.0,4235.7,2.9206]
[1759179160974,2.36072995,4236.0,4235.7,2.9206]
[1759179161182,2.36066627,4236.1,4235.7,2.9206]
[1759179161541,2.36066627,4236.1,4236.0,0.1176]
[1759179162774,2.61056627,4236.1,4236.0,0.1176]
[1759179162947,0.02758117,4236.2,4236.0,0.1176]
[1759179162948,0.001,4236.2,4236.0,0.1176]
[1759179163149,0.001,4236.2,4236.1,2.802]
[1759179163748,2.3616062,4236.2,4236.1,2.802]
[1759179164160,2.6115062,4236.2,4236.1,2.802]
[1759179164870,2.36092161,4235.7,4235.6,2.801]
[1759179165072,2.61082161,4235.7,4235.6,2.801]
[1759179165574,2.36095838,4235.6,4235.3,0.002]
[1759179165770,2.38761464,4235.5,4235.4,2.801]
[1759179165973,2.3607213,4236.0,4235.4,2.801]
[1759179166173,2.63727194,4235.9,4235.4,2.801]
[1759179166371,2.36092321,4235.7,4235.4,2.801]
[1759179166546,2.38750438,4235.7,4235.4,2.801]
[1759179166855,2.61082321,4235.7,4235.4,2.801]
[1759179167579,2.36094395,4235.6,4235.4,2.801]
[1759179167964,0.2499,4235.7,4235.4,2.801]
[1759179167965,2.61080354,4235.7,4235.4,2.801]
[1759179168146,2.36099634,4235.5,4235.4,2.801]
[1759179168343,2.61089634,4235.5,4235.4,2.801]
[1759179168553,3.04569634,4235.5,4235.4,2.801]
[1759179171484,6.04569634,4235.5,4235.4,2.801]
[1759179171858,5.61089634,4235.5,4235.4,2.801]
[1759179172254,3.0,4235.4,4235.3,0.002]
[1759179172553,5.61089634,4235.5,4235.3,2.801]